[Event "*** Titled Tuesday Blitz"]
[Site "Chess.com"]
[Date "2020.04.21"]
[Round "7"]
[White "Mfcyryd"]
[Black "tomsishere"]
[Result "1-0"]
[WhiteElo "2537"]
[BlackElo "2383"]
[TimeControl "180+1"]
[EndTime "11:22:41 PDT"]
[Termination "Mfcyryd won on time"]

1. e4 {[%clk 0:03:00]} 1... c5 {[%clk 0:02:59.1]} 2. Nf3 {[%clk 0:02:59.9]} 2...
e6 {[%clk 0:02:58.9]} 3. d4 {[%clk 0:03:00.8]} 3... cxd4 {[%clk 0:02:59]} 4.
Nxd4 {[%clk 0:03:01.7]} 4... Nc6 {[%clk 0:02:59.4]} 5. Nc3 {[%clk 0:03:01.5]}
5... Qc7 {[%clk 0:02:59.4]} 6. g3 {[%clk 0:03:01.6]} 6... a6 {[%clk 0:02:58.9]}
7. Bg2 {[%clk 0:03:01.4]} 7... h5 {[%clk 0:02:59.3]} 8. h3 {[%clk 0:03:00.1]}
8... Nf6 {[%clk 0:02:57.8]} 9. O-O {[%clk 0:02:59.7]} 9... Bc5 {[%clk
0:02:53.6]} 10. Nxc6 {[%clk 0:02:58.8]} 10... bxc6 {[%clk 0:02:52.9]} 11. Bf4
{[%clk 0:02:58.4]} 11... e5 {[%clk 0:02:52.5]} 12. Bg5 {[%clk 0:02:58.5]} 12...
d6 {[%clk 0:02:27.1]} 13. Na4 {[%clk 0:02:56.7]} 13... Ba7 {[%clk 0:02:23.3]}
14. Bxf6 {[%clk 0:02:44.7]} 14... gxf6 {[%clk 0:02:24.2]} 15. Qf3 {[%clk
0:02:44.6]} 15... Ke7 {[%clk 0:02:10.4]} 16. Rfd1 {[%clk 0:02:43.1]} 16... Be6
{[%clk 0:02:07.3]} 17. b3 {[%clk 0:02:41.1]} 17... Rag8 {[%clk 0:01:48.3]} 18.
Rd2 {[%clk 0:02:36.3]} 18... Rg6 {[%clk 0:01:37.9]} 19. Rad1 {[%clk 0:02:33.6]}
19... Rd8 {[%clk 0:01:30.7]} 20. Kh2 {[%clk 0:02:32.5]} 20... h4 {[%clk
0:01:27.5]} 21. g4 {[%clk 0:02:28.6]} 21... d5 {[%clk 0:01:27.7]} 22. Qe2 {[%clk
0:02:25]} 22... d4 {[%clk 0:01:21.1]} 23. Qxa6 {[%clk 0:02:24.1]} 23... c5
{[%clk 0:01:05.1]} 24. Bf1 {[%clk 0:02:14.8]} 24... f5 {[%clk 0:01:03.4]} 25.
exf5 {[%clk 0:02:01.2]} 25... Bxf5 {[%clk 0:01:02.9]} 26. Qe2 {[%clk 0:01:55.3]}
26... Be6 {[%clk 0:00:56.8]} 27. Bg2 {[%clk 0:01:54.4]} 27... f5 {[%clk
0:00:29.4]} 28. gxf5 {[%clk 0:01:49.1]} 28... e4+ {[%clk 0:00:23.3]} 29. Kh1
{[%clk 0:01:46.3]} 29... Rxg2 {[%clk 0:00:21.9]} 30. Kxg2 {[%clk 0:01:37.5]}
30... Rg8+ {[%clk 0:00:20.9]} 31. Kh1 {[%clk 0:01:37.4]} 31... Qf4 {[%clk
0:00:10]} 32. fxe6 {[%clk 0:01:26.1]} 32... Qf5 {[%clk 0:00:10]} 33. Rd3 {[%clk
0:01:14.7]} 33... exd3 {[%clk 0:00:10.2]} 34. Rxd3 {[%clk 0:01:14.3]} 34... Qg5
{[%clk 0:00:10.4]} 35. Qg4 {[%clk 0:01:07.1]} 35... Qc1+ {[%clk 0:00:09.5]} 36.
Rd1 {[%clk 0:01:02]} 36... Rxg4 {[%clk 0:00:09.3]} 37. Rxc1 {[%clk 0:01:01.7]}
37... Rf4 {[%clk 0:00:09.8]} 38. Kg2 {[%clk 0:01:01.2]} 38... Kxe6 {[%clk
0:00:10.3]} 39. Re1+ {[%clk 0:01:00.7]} 39... Kd5 {[%clk 0:00:09.9]} 40. Re7
{[%clk 0:00:59.8]} 40... Bb8 {[%clk 0:00:09.4]} 41. Rh7 {[%clk 0:00:57]} 41...
Ke4 {[%clk 0:00:04.7]} 42. Nxc5+ {[%clk 0:00:55.2]} 42... Kd5 {[%clk 0:00:04.9]}
43. Rh5+ {[%clk 0:00:55]} 43... Kc6 {[%clk 0:00:04.3]} 44. Nd3 {[%clk
0:00:51.2]} 44... Re4 {[%clk 0:00:03.7]} 45. Kf3 {[%clk 0:00:49.4]} 45... Re8
{[%clk 0:00:03]} 46. Rxh4 {[%clk 0:00:44.7]} 46... Ba7 {[%clk 0:00:03.3]} 47.
Re4 {[%clk 0:00:43.7]} 47... Rf8+ {[%clk 0:00:02.9]} 48. Ke2 {[%clk 0:00:43.9]}
48... Rh8 {[%clk 0:00:03.1]} 49. h4 {[%clk 0:00:44]} 49... Bb6 {[%clk
0:00:03.5]} 50. Nf4 {[%clk 0:00:39.7]} 50... Kd6 {[%clk 0:00:02.7]} 51. Ng6
{[%clk 0:00:38.4]} 51... Rh6 {[%clk 0:00:02.1]} 52. Rg4 {[%clk 0:00:38.1]} 52...
Kd5 {[%clk 0:00:01.3]} 53. Rg5+ {[%clk 0:00:36.7]} 1-0

[Event "*** Titled Tuesday Blitz"]
[Site "Chess.com"]
[Date "2020.04.21"]
[Round "7"]
[White "LifeIsAllAboutChess23"]
[Black "ntmh281"]
[Result "1-0"]
[WhiteElo "2024"]
[BlackElo "2243"]
[TimeControl "180+1"]
[EndTime "11:22:42 PDT"]
[Termination "LifeIsAllAboutChess23 won on time"]

1. d4 {[%clk 0:03:00.9]} 1... d5 {[%clk 0:02:59.8]} 2. Bg5 {[%clk 0:02:58.5]}
2... c6 {[%clk 0:03:00.7]} 3. e3 {[%clk 0:02:56.7]} 3... Bf5 {[%clk 0:03:01]} 4.
Nd2 {[%clk 0:02:56.3]} 4... Nd7 {[%clk 0:03:00.6]} 5. c4 {[%clk 0:02:56.4]} 5...
Ngf6 {[%clk 0:02:54.3]} 6. Qb3 {[%clk 0:02:53.1]} 6... Qb6 {[%clk 0:02:45.4]} 7.
Ngf3 {[%clk 0:02:52.5]} 7... e6 {[%clk 0:02:41]} 8. c5 {[%clk 0:02:48.2]} 8...
Qxb3 {[%clk 0:02:39.8]} 9. axb3 {[%clk 0:02:49.1]} 9... Ne4 {[%clk 0:02:40.7]}
10. Nxe4 {[%clk 0:02:45.1]} 10... Bxe4 {[%clk 0:02:39.6]} 11. Nd2 {[%clk
0:02:45.2]} 11... Bf5 {[%clk 0:02:33.9]} 12. b4 {[%clk 0:02:44.1]} 12... a6
{[%clk 0:02:29.5]} 13. f4 {[%clk 0:02:43]} 13... h6 {[%clk 0:02:25.1]} 14. Bh4
{[%clk 0:02:42.3]} 14... Be7 {[%clk 0:02:03.4]} 15. Bf2 {[%clk 0:02:36.7]} 15...
O-O {[%clk 0:02:02.4]} 16. Be2 {[%clk 0:02:36.4]} 16... Nf6 {[%clk 0:01:59.8]}
17. Bf3 {[%clk 0:02:30.4]} 17... Ne4 {[%clk 0:01:54.3]} 18. Bxe4 {[%clk
0:02:29.5]} 18... Bxe4 {[%clk 0:01:55.2]} 19. O-O {[%clk 0:02:29.3]} 19... Rae8
{[%clk 0:01:48.6]} 20. Bg3 {[%clk 0:02:28.9]} 20... f5 {[%clk 0:01:45]} 21. Rf2
{[%clk 0:02:26.2]} 21... Bf6 {[%clk 0:01:41.4]} 22. Nb3 {[%clk 0:02:25.7]} 22...
Rf7 {[%clk 0:01:40.5]} 23. Na5 {[%clk 0:02:25]} 23... Kh7 {[%clk 0:01:40.5]} 24.
Nb3 {[%clk 0:02:23.4]} 24... Rg8 {[%clk 0:01:39.7]} 25. Nd2 {[%clk 0:02:21.8]}
25... Bd8 {[%clk 0:01:36.1]} 26. Nxe4 {[%clk 0:02:13.5]} 26... fxe4 {[%clk
0:01:22.2]} 27. Raf1 {[%clk 0:02:10.7]} 27... g6 {[%clk 0:01:21.7]} 28. Kh1
{[%clk 0:02:08]} 28... Rgf8 {[%clk 0:01:21.4]} 29. h3 {[%clk 0:02:07]} 29... Rf5
{[%clk 0:01:21.4]} 30. Bh2 {[%clk 0:02:06.2]} 30... Bc7 {[%clk 0:01:11.8]} 31.
g4 {[%clk 0:02:05.8]} 31... R5f7 {[%clk 0:01:11.8]} 32. Kg2 {[%clk 0:02:03.2]}
32... Kg7 {[%clk 0:01:10.2]} 33. Bg3 {[%clk 0:02:03]} 33... Bd8 {[%clk
0:00:56.7]} 34. b3 {[%clk 0:02:02.4]} 34... Be7 {[%clk 0:00:54.7]} 35. Ra1
{[%clk 0:01:57.3]} 35... g5 {[%clk 0:00:47.1]} 36. Raf1 {[%clk 0:01:52.2]} 36...
gxf4 {[%clk 0:00:46]} 37. Bxf4 {[%clk 0:01:51.1]} 37... Kg6 {[%clk 0:00:45.9]}
38. Kg3 {[%clk 0:01:46.6]} 38... Bd8 {[%clk 0:00:41.3]} 39. h4 {[%clk
0:01:46.1]} 39... Be7 {[%clk 0:00:24.2]} 40. h5+ {[%clk 0:01:44.8]} 40... Kh7
{[%clk 0:00:24.2]} 41. Kg2 {[%clk 0:01:42.7]} 41... Rg7 {[%clk 0:00:22.4]} 42.
Kh3 {[%clk 0:01:41.6]} 42... Rfg8 {[%clk 0:00:22.3]} 43. Rg2 {[%clk 0:01:41.2]}
43... Bf6 {[%clk 0:00:21.3]} 44. Bd6 {[%clk 0:01:37.4]} 44... Bg5 {[%clk
0:00:20.5]} 45. Be5 {[%clk 0:01:37.3]} 45... Rd7 {[%clk 0:00:19.8]} 46. Bf4
{[%clk 0:01:35.9]} 46... Rf7 {[%clk 0:00:18.8]} 47. Rgf2 {[%clk 0:01:35.2]}
47... Be7 {[%clk 0:00:12.2]} 48. Be5 {[%clk 0:01:29.5]} 48... Rxf2 {[%clk
0:00:12]} 49. Rxf2 {[%clk 0:01:30.4]} 49... Rf8 {[%clk 0:00:12.9]} 50. Rxf8
{[%clk 0:01:26.6]} 50... Bxf8 {[%clk 0:00:13.8]} 51. Bf6 {[%clk 0:01:18.4]}
51... Kg8 {[%clk 0:00:12.6]} 52. g5 {[%clk 0:01:17.8]} 52... Kf7 {[%clk
0:00:11]} 53. Kg4 {[%clk 0:01:16.6]} 53... hxg5 {[%clk 0:00:08.4]} 54. Bxg5
{[%clk 0:01:13.4]} 54... Bg7 {[%clk 0:00:07.6]} 55. Bf4 {[%clk 0:01:13.3]} 55...
Bh8 {[%clk 0:00:05.6]} 56. Kg5 {[%clk 0:01:12.8]} 56... Bf6+ {[%clk 0:00:04.8]}
57. Kg4 {[%clk 0:01:12.2]} 57... Bg7 {[%clk 0:00:03.3]} 58. h6 {[%clk
0:01:11.5]} 58... Bh8 {[%clk 0:00:03.3]} 59. Kh5 {[%clk 0:01:10.7]} 59... Bf6
{[%clk 0:00:02.3]} 60. Bg3 {[%clk 0:01:07.9]} 60... Bh8 {[%clk 0:00:01.4]} 61.
h7 {[%clk 0:01:07.4]} 1-0

[Event "*** Titled Tuesday Blitz"]
[Site "Chess.com"]
[Date "2020.04.21"]
[Round "7"]
[White "eightbyeightchess"]
[Black "WhiteKnight2612"]
[Result "1-0"]
[WhiteElo "2479"]
[BlackElo "2635"]
[TimeControl "180+1"]
[EndTime "11:22:44 PDT"]
[Termination "eightbyeightchess won on time"]

1. e4 {[%clk 0:02:59.8]} 1... e5 {[%clk 0:03:00]} 2. Nf3 {[%clk 0:02:58.5]} 2...
Nc6 {[%clk 0:03:00.5]} 3. Bb5 {[%clk 0:02:57.7]} 3... a6 {[%clk 0:02:59.7]} 4.
Ba4 {[%clk 0:02:57.5]} 4... Nf6 {[%clk 0:02:59.2]} 5. d4 {[%clk 0:02:57.8]} 5...
exd4 {[%clk 0:02:57.7]} 6. O-O {[%clk 0:02:57.3]} 6... Be7 {[%clk 0:02:50.3]} 7.
Re1 {[%clk 0:02:57.1]} 7... b5 {[%clk 0:02:45.8]} 8. Bb3 {[%clk 0:02:56.9]} 8...
d6 {[%clk 0:02:46]} 9. Bd5 {[%clk 0:02:57.2]} 9... Nxd5 {[%clk 0:02:36.1]} 10.
exd5 {[%clk 0:02:58.1]} 10... Ne5 {[%clk 0:02:36.5]} 11. Nxd4 {[%clk 0:02:57.7]}
11... Bd7 {[%clk 0:02:34.9]} 12. a4 {[%clk 0:02:54.3]} 12... O-O {[%clk
0:02:33.7]} 13. Nc3 {[%clk 0:02:53.8]} 13... b4 {[%clk 0:02:32.3]} 14. Ne4
{[%clk 0:02:53.5]} 14... Re8 {[%clk 0:02:26]} 15. b3 {[%clk 0:02:51]} 15... a5
{[%clk 0:02:15.7]} 16. Bb2 {[%clk 0:02:50.6]} 16... Bf8 {[%clk 0:02:15.1]} 17.
f4 {[%clk 0:02:24.3]} 17... Ng6 {[%clk 0:02:03.9]} 18. Qf3 {[%clk 0:02:20.5]}
18... Qc8 {[%clk 0:02:02.1]} 19. Qf2 {[%clk 0:02:05.3]} 19... Qb7 {[%clk
0:02:00.7]} 20. f5 {[%clk 0:01:57.8]} 20... Ne5 {[%clk 0:01:59.4]} 21. Nf3
{[%clk 0:01:52.9]} 21... f6 {[%clk 0:01:22.1]} 22. Rad1 {[%clk 0:01:32.3]} 22...
Rad8 {[%clk 0:01:06.4]} 23. Nd4 {[%clk 0:01:29.4]} 23... Qxd5 {[%clk 0:00:55.2]}
24. Ne6 {[%clk 0:01:26]} 24... Qb7 {[%clk 0:00:55.6]} 25. Nxd8 {[%clk
0:01:16.7]} 25... Rxd8 {[%clk 0:00:56.5]} 26. Bxe5 {[%clk 0:01:11.6]} 26... dxe5
{[%clk 0:00:44.3]} 27. Rd3 {[%clk 0:01:07.8]} 27... Be7 {[%clk 0:00:39.5]} 28.
Qd2 {[%clk 0:01:03.6]} 28... Qc6 {[%clk 0:00:24.8]} 29. Rd1 {[%clk 0:00:46.7]}
29... Qxe4 {[%clk 0:00:23.4]} 30. Rxd7 {[%clk 0:00:46.8]} 30... Bc5+ {[%clk
0:00:23.3]} 31. Kh1 {[%clk 0:00:45.3]} 31... Rxd7 {[%clk 0:00:23.2]} 32. Qxd7
{[%clk 0:00:46.2]} 32... Bd6 {[%clk 0:00:09.3]} 33. Qe8+ {[%clk 0:00:39.9]}
33... Bf8 {[%clk 0:00:09.6]} 34. Qe6+ {[%clk 0:00:40.1]} 34... Kh8 {[%clk
0:00:10.2]} 35. Qf7 {[%clk 0:00:40.1]} 35... Qa8 {[%clk 0:00:10]} 36. Qxc7
{[%clk 0:00:35]} 36... h6 {[%clk 0:00:09.1]} 37. Rd8 {[%clk 0:00:29.7]} 37...
Qe4 {[%clk 0:00:09.5]} 38. Rxf8+ {[%clk 0:00:20.3]} 38... Kh7 {[%clk 0:00:10]}
39. Qc5 {[%clk 0:00:15.3]} 39... Qxf5 {[%clk 0:00:10.4]} 40. h3 {[%clk
0:00:12.5]} 40... Qf1+ {[%clk 0:00:10]} 41. Qg1 {[%clk 0:00:12.1]} 41... Qe2
{[%clk 0:00:10]} 42. Rd8 {[%clk 0:00:11.7]} 42... Qxc2 {[%clk 0:00:09.8]} 43.
Qd1 {[%clk 0:00:11.1]} 43... Qf5 {[%clk 0:00:09.9]} 44. Qf3 {[%clk 0:00:07.1]}
44... Qb1+ {[%clk 0:00:09.3]} 45. Kh2 {[%clk 0:00:07.5]} 45... Qg6 {[%clk
0:00:09.2]} 46. Qd3 {[%clk 0:00:07]} 46... e4 {[%clk 0:00:09]} 47. Qg3 {[%clk
0:00:07.7]} 47... Qf5 {[%clk 0:00:08.3]} 48. Re8 {[%clk 0:00:06.3]} 1-0

[Event "*** Titled Tuesday Blitz"]
[Site "Chess.com"]
[Date "2020.04.21"]
[Round "7"]
[White "Tpros"]
[Black "eldidi20"]
[Result "0-1"]
[WhiteElo "2385"]
[BlackElo "2198"]
[TimeControl "180+1"]
[EndTime "11:22:44 PDT"]
[Termination "eldidi20 won by resignation"]

1. c4 {[%clk 0:03:00.9]} 1... c5 {[%clk 0:02:57.6]} 2. Nc3 {[%clk 0:03:00.4]}
2... Nc6 {[%clk 0:02:57.8]} 3. g3 {[%clk 0:03:00.5]} 3... g6 {[%clk 0:02:57.8]}
4. Bg2 {[%clk 0:03:00.7]} 4... Bg7 {[%clk 0:02:57.6]} 5. d3 {[%clk 0:03:01.6]}
5... e5 {[%clk 0:02:57.5]} 6. e3 {[%clk 0:02:58.5]} 6... d6 {[%clk 0:02:54.6]}
7. Nge2 {[%clk 0:02:59.4]} 7... h5 {[%clk 0:02:52.2]} 8. h4 {[%clk 0:02:57.2]}
8... Nge7 {[%clk 0:02:51]} 9. a3 {[%clk 0:02:56.9]} 9... Be6 {[%clk 0:02:51.1]}
10. Nd5 {[%clk 0:02:56.9]} 10... O-O {[%clk 0:02:48.6]} 11. Nec3 {[%clk
0:02:56.6]} 11... Kh7 {[%clk 0:02:36.5]} 12. Nxe7 {[%clk 0:02:54.6]} 12... Qxe7
{[%clk 0:02:34.9]} 13. Nd5 {[%clk 0:02:54.3]} 13... Qd7 {[%clk 0:02:35.4]} 14.
Bd2 {[%clk 0:02:52.8]} 14... f5 {[%clk 0:02:32.9]} 15. Bc3 {[%clk 0:02:51.2]}
15... Bxd5 {[%clk 0:02:16.1]} 16. Bxd5 {[%clk 0:02:50.1]} 16... Rae8 {[%clk
0:02:09.4]} 17. Qa4 {[%clk 0:02:40.1]} 17... a6 {[%clk 0:01:46.6]} 18. O-O-O
{[%clk 0:02:34.2]} 18... Rb8 {[%clk 0:01:40.1]} 19. f4 {[%clk 0:02:22.2]} 19...
Qc8 {[%clk 0:01:34.7]} 20. fxe5 {[%clk 0:02:13]} 20... Nxe5 {[%clk 0:01:30.8]}
21. Qc2 {[%clk 0:01:55.7]} 21... b5 {[%clk 0:01:28.3]} 22. cxb5 {[%clk
0:01:38.9]} 22... axb5 {[%clk 0:01:29.2]} 23. Kb1 {[%clk 0:01:33.1]} 23... Qa6
{[%clk 0:01:23.6]} 24. Bxe5 {[%clk 0:01:24.3]} 24... Bxe5 {[%clk 0:01:24.5]} 25.
d4 {[%clk 0:01:24.2]} 25... cxd4 {[%clk 0:01:07.3]} 26. exd4 {[%clk 0:01:23.7]}
26... Bg7 {[%clk 0:00:57.3]} 27. Qb3 {[%clk 0:01:13.1]} 27... Qa7 {[%clk
0:00:50.9]} 28. Rhe1 {[%clk 0:00:58.2]} 28... Bxd4 {[%clk 0:00:47.6]} 29. Re6
{[%clk 0:00:57.6]} 29... Be5 {[%clk 0:00:46.3]} 30. Rc1 {[%clk 0:00:48.7]} 30...
Rfc8 {[%clk 0:00:40.6]} 31. Rd1 {[%clk 0:00:43.2]} 31... Rc7 {[%clk 0:00:35.6]}
32. g4 {[%clk 0:00:32.7]} 32... hxg4 {[%clk 0:00:24.1]} 33. h5 {[%clk 0:00:32]}
33... gxh5 {[%clk 0:00:22.4]} 34. Qd3 {[%clk 0:00:32]} 34... Qf2 {[%clk
0:00:18.2]} 35. Rd2 {[%clk 0:00:27.2]} 35... Qf4 {[%clk 0:00:16.9]} 36. Rd1
{[%clk 0:00:15.7]} 36... Rf8 {[%clk 0:00:15.1]} 37. Rf1 {[%clk 0:00:14.8]} 37...
Qg5 {[%clk 0:00:14.9]} 38. Rh1 {[%clk 0:00:13]} 38... Kg7 {[%clk 0:00:15.1]} 39.
Rf1 {[%clk 0:00:12.1]} 39... h4 {[%clk 0:00:15.2]} 40. Qxb5 {[%clk 0:00:11.9]}
40... h3 {[%clk 0:00:14.1]} 41. Qb6 {[%clk 0:00:11.4]} 41... Rff7 {[%clk
0:00:13.6]} 42. Rxe5 {[%clk 0:00:10.4]} 42... dxe5 {[%clk 0:00:12.5]} 43. Bxf7
{[%clk 0:00:10.3]} 43... Rxf7 {[%clk 0:00:13.4]} 44. Qe6 {[%clk 0:00:08]} 44...
f4 {[%clk 0:00:12.8]} 45. Rg1 {[%clk 0:00:07.3]} 45... h2 {[%clk 0:00:11.5]} 46.
Rxg4 {[%clk 0:00:05.6]} 46... h1=Q+ {[%clk 0:00:11.2]} 47. Ka2 {[%clk
0:00:06.1]} 47... Qh6 {[%clk 0:00:08.4]} 48. Rxg5+ {[%clk 0:00:04.7]} 48... Qxg5
{[%clk 0:00:09.3]} 0-1

[Event "*** Titled Tuesday Blitz"]
[Site "Chess.com"]
[Date "2020.04.21"]
[Round "7"]
[White "Harut-1998"]
[Black "eljanov"]
[Result "1/2-1/2"]
[WhiteElo "2647"]
[BlackElo "2804"]
[TimeControl "180+1"]
[EndTime "11:22:45 PDT"]
[Termination "Game drawn - insufficient material"]

1. d4 {[%clk 0:03:00.9]} 1... Nf6 {[%clk 0:02:58.6]} 2. Nf3 {[%clk 0:02:59.6]}
2... d5 {[%clk 0:02:57.9]} 3. Bf4 {[%clk 0:02:58.8]} 3... e6 {[%clk 0:02:57.2]}
4. e3 {[%clk 0:02:58.4]} 4... Bd6 {[%clk 0:02:57]} 5. Bg3 {[%clk 0:02:57.9]}
5... c5 {[%clk 0:02:55.3]} 6. Nbd2 {[%clk 0:02:57]} 6... O-O {[%clk 0:02:54.2]}
7. c3 {[%clk 0:02:50.4]} 7... Qc7 {[%clk 0:02:53.6]} 8. Ne5 {[%clk 0:02:37.5]}
8... b6 {[%clk 0:02:37.3]} 9. f4 {[%clk 0:02:33.3]} 9... Ba6 {[%clk 0:02:34.4]}
10. Bxa6 {[%clk 0:02:28.8]} 10... Nxa6 {[%clk 0:02:34.7]} 11. Bh4 {[%clk
0:02:22.8]} 11... Nd7 {[%clk 0:02:13.1]} 12. O-O {[%clk 0:02:15.8]} 12... f6
{[%clk 0:02:06.2]} 13. Nxd7 {[%clk 0:01:57.7]} 13... Qxd7 {[%clk 0:02:06.1]} 14.
a4 {[%clk 0:01:53.1]} 14... Nb8 {[%clk 0:02:01.7]} 15. Qe2 {[%clk 0:01:49.8]}
15... Nc6 {[%clk 0:02:00.3]} 16. Qa6 {[%clk 0:01:41.3]} 16... Rae8 {[%clk
0:01:52.6]} 17. Bg3 {[%clk 0:01:18.4]} 17... e5 {[%clk 0:01:41.7]} 18. fxe5
{[%clk 0:01:08.4]} 18... fxe5 {[%clk 0:01:40.8]} 19. dxc5 {[%clk 0:01:08.4]}
19... Bxc5 {[%clk 0:01:37.4]} 20. Qe2 {[%clk 0:01:04.4]} 20... d4 {[%clk
0:01:20.9]} 21. Qc4+ {[%clk 0:00:41.7]} 21... Qe6 {[%clk 0:01:10.8]} 22. Rxf8+
{[%clk 0:00:35.1]} 22... Bxf8 {[%clk 0:01:10.2]} 23. Qxe6+ {[%clk 0:00:29.7]}
23... Rxe6 {[%clk 0:01:09.9]} 24. Ne4 {[%clk 0:00:25.3]} 24... dxc3 {[%clk
0:01:03.1]} 25. Nxc3 {[%clk 0:00:20.2]} 25... Bc5 {[%clk 0:01:00.3]} 26. Kf2
{[%clk 0:00:17]} 26... Nb4 {[%clk 0:01:00.4]} 27. Rd1 {[%clk 0:00:13.5]} 27...
Nc2 {[%clk 0:00:59.9]} 28. Rd3 {[%clk 0:00:09.2]} 28... e4 {[%clk 0:00:37.1]}
29. Rd8+ {[%clk 0:00:08.8]} 29... Kf7 {[%clk 0:00:37.7]} 30. Rd7+ {[%clk
0:00:08.5]} 30... Ke8 {[%clk 0:00:23.3]} 31. Rxg7 {[%clk 0:00:04.4]} 31... Nxe3
{[%clk 0:00:23.7]} 32. Ke2 {[%clk 0:00:02.7]} 32... h5 {[%clk 0:00:21.1]} 33.
Bf2 {[%clk 0:00:02.7]} 33... Nf5 {[%clk 0:00:18.1]} 34. Rxa7 {[%clk 0:00:01.5]}
34... Bxf2 {[%clk 0:00:15.5]} 35. Kxf2 {[%clk 0:00:02.4]} 35... e3+ {[%clk
0:00:15.5]} 36. Ke2 {[%clk 0:00:02.7]} 36... Nd4+ {[%clk 0:00:15.5]} 37. Kd3
{[%clk 0:00:03.2]} 37... e2 {[%clk 0:00:15.5]} 38. Nxe2 {[%clk 0:00:03.5]} 38...
Nxe2 {[%clk 0:00:15.8]} 39. Rb7 {[%clk 0:00:03.7]} 39... Nf4+ {[%clk 0:00:15.9]}
40. Kc4 {[%clk 0:00:03.8]} 40... Nxg2 {[%clk 0:00:10.9]} 41. Kb5 {[%clk
0:00:04]} 41... Ne3 {[%clk 0:00:06.3]} 42. Rxb6 {[%clk 0:00:03.2]} 42... Rxb6+
{[%clk 0:00:06.5]} 43. Kxb6 {[%clk 0:00:04.1]} 43... Nc4+ {[%clk 0:00:06.9]} 44.
Kb5 {[%clk 0:00:04]} 44... Nxb2 {[%clk 0:00:06.8]} 45. a5 {[%clk 0:00:04.7]}
45... Kd7 {[%clk 0:00:05.5]} 46. a6 {[%clk 0:00:04.9]} 46... Kc7 {[%clk
0:00:05.8]} 47. Kc5 {[%clk 0:00:05.1]} 47... Nd3+ {[%clk 0:00:05.6]} 48. Kd4
{[%clk 0:00:05.1]} 48... Nf2 {[%clk 0:00:05.4]} 49. Ke5 {[%clk 0:00:04.8]} 49...
Ng4+ {[%clk 0:00:05]} 50. Kf4 {[%clk 0:00:05.2]} 50... Nxh2 {[%clk 0:00:04.9]}
51. Kg5 {[%clk 0:00:05.5]} 51... Kb6 {[%clk 0:00:04.7]} 52. Kxh5 {[%clk
0:00:05.7]} 52... Kxa6 {[%clk 0:00:05.1]} 1/2-1/2

[Event "*** Titled Tuesday Blitz"]
[Site "Chess.com"]
[Date "2020.04.21"]
[Round "7"]
[White "BursaBBSatranc"]
[Black "EugeneRougon"]
[Result "1-0"]
[WhiteElo "2533"]
[BlackElo "2695"]
[TimeControl "180+1"]
[EndTime "11:22:45 PDT"]
[Termination "BursaBBSatranc won on time"]

1. d4 {[%clk 0:03:00.9]} 1... d6 {[%clk 0:02:59.8]} 2. Bf4 {[%clk 0:03:00.9]}
2... g6 {[%clk 0:02:58.4]} 3. e3 {[%clk 0:02:59.9]} 3... Bg7 {[%clk 0:02:58.4]}
4. Nf3 {[%clk 0:03:00.4]} 4... Nf6 {[%clk 0:02:58.5]} 5. h3 {[%clk 0:03:00.7]}
5... O-O {[%clk 0:02:59]} 6. Be2 {[%clk 0:03:01]} 6... b6 {[%clk 0:02:59.3]} 7.
O-O {[%clk 0:03:01.6]} 7... Bb7 {[%clk 0:03:00]} 8. c3 {[%clk 0:03:02.3]} 8...
Nbd7 {[%clk 0:02:59.5]} 9. Nbd2 {[%clk 0:03:02.8]} 9... Qe8 {[%clk 0:02:51.7]}
10. Bh2 {[%clk 0:02:59.5]} 10... e5 {[%clk 0:02:51.5]} 11. Nc4 {[%clk
0:02:36.4]} 11... e4 {[%clk 0:02:41.9]} 12. Nfd2 {[%clk 0:02:36.3]} 12... Nd5
{[%clk 0:02:39]} 13. a4 {[%clk 0:02:34.3]} 13... a6 {[%clk 0:02:29.9]} 14. Qb3
{[%clk 0:02:25.6]} 14... Rb8 {[%clk 0:01:56.3]} 15. Na3 {[%clk 0:02:10.3]} 15...
a5 {[%clk 0:01:15.5]} 16. Nb5 {[%clk 0:02:07.5]} 16... Rc8 {[%clk 0:00:51.8]}
17. Bxd6 {[%clk 0:02:03.1]} 17... cxd6 {[%clk 0:00:51.8]} 18. Nxd6 {[%clk
0:02:03.2]} 18... Qe6 {[%clk 0:00:52.4]} 19. Nxb7 {[%clk 0:02:03.2]} 19... Rb8
{[%clk 0:00:33.2]} 20. Nxe4 {[%clk 0:01:36.7]} 20... Nxe3 {[%clk 0:00:08.3]} 21.
Qxe6 {[%clk 0:01:25.4]} 21... fxe6 {[%clk 0:00:09.2]} 22. fxe3 {[%clk
0:01:14.9]} 22... Rxb7 {[%clk 0:00:07.3]} 23. Bc4 {[%clk 0:01:14.8]} 23... Rxf1+
{[%clk 0:00:07]} 24. Rxf1 {[%clk 0:01:14.4]} 24... Nf8 {[%clk 0:00:07.9]} 25. d5
{[%clk 0:01:00.4]} 25... Rc7 {[%clk 0:00:07.6]} 26. Bb3 {[%clk 0:00:51.5]} 26...
exd5 {[%clk 0:00:06]} 27. Bxd5+ {[%clk 0:00:51.2]} 27... Kh8 {[%clk 0:00:06.9]}
28. Ng5 {[%clk 0:00:33.1]} 28... h6 {[%clk 0:00:06.9]} 29. Nf7+ {[%clk
0:00:27.5]} 29... Kh7 {[%clk 0:00:07.2]} 30. e4 {[%clk 0:00:26.4]} 30... Re7
{[%clk 0:00:06.6]} 31. h4 {[%clk 0:00:24.1]} 31... Nd7 {[%clk 0:00:04.7]} 32. h5
{[%clk 0:00:20]} 32... Nf6 {[%clk 0:00:04.1]} 33. hxg6+ {[%clk 0:00:19]} 33...
Kxg6 {[%clk 0:00:05]} 34. Nd6 {[%clk 0:00:13.9]} 34... Nxd5 {[%clk 0:00:03.9]}
35. exd5 {[%clk 0:00:14.2]} 35... Rd7 {[%clk 0:00:03.3]} 36. Nc4 {[%clk
0:00:13.6]} 36... Rxd5 {[%clk 0:00:03.4]} 37. Nxb6 {[%clk 0:00:13.9]} 37... Rd2
{[%clk 0:00:03]} 38. Rf2 {[%clk 0:00:13.2]} 38... Rd1+ {[%clk 0:00:03.5]} 39.
Kh2 {[%clk 0:00:12.2]} 39... Be5+ {[%clk 0:00:03.1]} 40. g3 {[%clk 0:00:12.7]}
40... Rd3 {[%clk 0:00:03.2]} 41. Rg2 {[%clk 0:00:10.7]} 41... Bc7 {[%clk
0:00:03.4]} 42. Nc4 {[%clk 0:00:09.7]} 42... h5 {[%clk 0:00:03.9]} 43. Kh3
{[%clk 0:00:09.5]} 43... Kg5 {[%clk 0:00:04.3]} 44. Nd2 {[%clk 0:00:09]} 44...
h4 {[%clk 0:00:01.2]} 45. Ne4+ {[%clk 0:00:09.1]} 45... Kh5 {[%clk 0:00:01.5]}
46. Re2 {[%clk 0:00:04.5]} 1-0